bitfinex-derivatives/quotes_SOLF0:USTF0_20251222
["timestamp","ask_amount","ask_price","bid_price","bid_amount"]
[1766421171946,92.44,127.74,127.65,21.49]
[1766421172448,0.05390926,127.71,127.68,0.04987915]
[1766421173147,20.4,127.77,127.68,21.53987915]
[1766421173352,20.4,127.77,127.68,21.49]
[1766421173655,20.4,127.78,127.68,21.49]
[1766421173845,20.4,127.77,127.68,21.49]
[1766421174041,0.04949634,127.74,127.71,0.0512917]
[1766421181062,0.04949634,127.74,127.71,0.0012917]
[1766421181360,26.72154655,127.78,127.71,0.0012917]
[1766421181768,20.4,127.77,127.71,0.0012917]
[1766421182167,0.05662813,127.75,127.71,0.0012917]
[1766421183061,20.45662813,127.75,127.71,0.0012917]
[1766421184367,0.05662813,127.75,127.71,0.0012917]
[1766421186070,0.05662813,127.75,127.71,22.2712917]
[1766421187170,37.4458,127.79,127.71,22.2712917]
[1766421187369,30.4,127.79,127.72,29.3193]
[1766421187567,10.0,127.79,127.72,29.3193]
[1766421187773,10.0,127.79,127.73,22.27]
[1766421188266,0.05682033,127.77,127.75,0.05533987]
[1766421190272,0.05682033,127.77,127.71,7.0496]
[1766421190474,0.05682033,127.77,127.7,22.27]
[1766421190965,0.05682033,127.77,127.72,7.0492]
[1766421191368,0.05682033,127.77,127.73,0.0592821]
[1766421191773,0.05682033,127.77,127.73,29.3780821]
[1766421192181,0.05682033,127.77,127.73,0.0592821]
[1766421194477,21.26682033,127.77,127.73,0.0592821]
[1766421195279,0.05682033,127.77,127.73,0.0592821]
[1766421197975,0.05682033,127.77,127.73,22.3292821]
[1766421198180,21.21,127.84,127.73,0.0592821]
[1766421198478,21.21,127.8,127.71,22.27]
[1766421198677,21.21,127.77,127.68,22.27]
[1766421199178,28.30928405,127.74,127.71,0.0003186]
[1766421199482,28.2585,127.74,127.65,22.27]
[1766421199871,7.0491,127.73,127.65,22.27]
[1766421200077,28.2591,127.73,127.65,22.27]
[1766421200279,109.6377,127.75,127.65,22.27]
[1766421200481,0.05300992,127.71,127.69,0.0554848]
[1766421200784,0.00300992,127.71,127.69,0.0554848]
[1766421200985,113.61,127.78,127.69,22.3254848]
[1766421201288,21.21,127.77,127.69,22.27]
[1766421201477,28.2569,127.77,127.69,22.27]
[1766421201976,0.05498248,127.74,127.72,0.05303081]
[1766421203789,0.05498248,127.74,127.66,22.27]
[1766421204087,21.21,127.75,127.66,22.27]
[1766421204672,7.0485,127.74,127.66,22.27]
[1766421204987,0.05479807,127.71,127.69,0.05780298]
[1766421205789,0.00479807,127.71,127.69,22.32780298]
[1766421206486,0.00479807,127.71,127.7,22.27]
[1766421207682,21.21,127.8,127.72,7.049]
[1766421207884,21.21,127.8,127.72,29.319]
[1766421208072,109.568,127.83,127.74,22.27]
[1766421208073,21.21,127.83,127.74,22.27]
[1766421208273,21.21,127.83,127.75,22.27]
[1766421208470,21.21,127.83,127.75,29.3175]
[1766421208673,0.0575203,127.8,127.78,0.05092188]
[1766421214393,22.0675203,127.8,127.78,0.00092188]
[1766421214578,22.0675203,127.8,127.72,21.72]
[1766421214783,22.01,127.8,127.72,21.72]
[1766421214978,22.01,127.8,127.69,202.0589]
[1766421214979,29.0563,127.78,127.7,7.0503]
[1766421215276,29.0563,127.78,127.69,114.1]
[1766421215277,22.01,127.78,127.69,114.1]
[1766421215480,0.05648476,127.75,127.72,0.05266195]
[1766421216087,0.05648476,127.75,127.72,0.00266195]
[1766421216893,7.10448476,127.75,127.72,0.00266195]
[1766421217494,7.0485,127.74,127.72,0.00266195]
[1766421217980,30.3385,127.74,127.67,99.432]
[1766421218593,23.29,127.7,127.62,22.05]
[1766421218895,23.29,127.69,127.62,22.05]
[1766421219190,92.38,127.7,127.64,0.05966124]
[1766421219389,92.38,127.7,127.64,7.0537]
[1766421219792,92.38,127.7,127.62,22.05]
[1766421220190,0.05604471,127.67,127.65,0.05639978]
[1766421220694,92.38,127.7,127.65,0.05639978]
[1766421220890,92.4,127.71,127.65,0.05639978]
[1766421221098,30.3396,127.72,127.65,0.05639978]
[1766421221403,122.7396,127.72,127.65,0.05639978]
[1766421221705,0.052786,127.7,127.65,0.05639978]
[1766421223792,0.002786,127.7,127.65,22.10639978]
[1766421224794,0.002786,127.7,127.66,7.0526]
[1766421224998,0.002786,127.7,127.65,22.10639978]
[1766421225594,0.002786,127.7,127.65,0.05639978]
[1766421227602,23.292786,127.7,127.65,0.05639978]
[1766421228196,23.29,127.69,127.61,92.4]
[1766421228401,115.71,127.69,127.59,32.05]
[1766421228597,115.71,127.69,127.6,22.05]
[1766421229300,92.42,127.69,127.63,22.10500683]
[1766421229498,115.71,127.71,127.63,22.10500683]
[1766421229804,115.71,127.71,127.63,22.05]
[1766421230500,0.0495615,127.68,127.66,0.05468007]
[1766421232100,115.71,127.71,127.66,0.05468007]
[1766421232905,0.05014078,127.7,127.66,0.05468007]
[1766421233102,23.34014078,127.7,127.66,0.05468007]
[1766421233408,30.3412,127.69,127.6,22.05]
[1766421233606,23.29,127.69,127.6,22.05]
[1766421233813,23.29,127.67,127.59,10.0]
[1766421234000,115.71,127.66,127.59,10.0]
[1766421234202,7.0534,127.65,127.59,10.0]
[1766421234412,0.05462603,127.63,127.61,0.05822323]
[1766421235409,0.00462603,127.63,127.61,0.05822323]
[1766421237007,0.00462603,127.63,127.59,10.0]
[1766421237904,0.00462603,127.63,127.6,0.0502849]
[1766421239401,0.00462603,127.63,127.6,7.1062849]
[1766421239603,0.00462603,127.63,127.6,29.1562849]
[1766421239906,92.44,127.68,127.6,22.1002849]
[1766421240105,92.44,127.68,127.6,22.05]
[1766421240318,92.44,127.68,127.62,22.05]
[1766421240500,23.29,127.75,127.63,22.05]
[1766421240708,0.05383812,127.7,127.68,0.05772543]
[1766421241017,0.05903774,127.7,127.68,0.05507874]
[1766421242414,92.46,127.74,127.68,0.05507874]
[1766421243618,0.05586381,127.72,127.68,0.05507874]
[1766421251822,7.10546381,127.72,127.68,0.05507874]
[1766421252117,22.02586381,127.72,127.63,21.54]
[1766421252318,7.0506,127.7,127.63,28.5941]
[1766421252819,29.0206,127.7,127.63,28.5941]
[1766421253123,0.05123298,127.68,127.65,0.0531036]
[1766421256318,7.0503,127.71,127.65,21.5931036]
[1766421256513,92.44,127.72,127.65,21.54]
[1766421256827,114.41,127.73,127.65,21.54]
[1766421257126,121.459,127.73,127.65,28.5932]
[1766421257425,0.06011002,127.7,127.68,0.0527482]
[1766421258629,21.97,127.73,127.68,0.0527482]
[1766421258826,92.44,127.75,127.68,21.5927482]
[1766421259630,0.05403443,127.73,127.68,21.5927482]
[1766421260626,0.05403443,127.73,127.69,7.051]
[1766421261549,21.97,127.77,127.7,21.54]
[1766421262019,13.35725635,127.79,127.7,21.54]
[1766421262224,35.32725635,127.79,127.71,28.5898]
[1766421262624,0.05946296,127.76,127.74,0.05441414]
[1766421265533,0.05946296,127.76,127.7,21.54]
[1766421265835,21.97,127.77,127.7,21.54]
[1766421265836,29.0169,127.77,127.7,21.54]
[1766421266332,29.0169,127.77,127.7,28.5905]
[1766421266529,29.0169,127.77,127.72,0.05801565]
[1766421266530,0.05514643,127.75,127.72,0.05801565]
[1766421269536,6.31155635,127.78,127.72,21.85801565]
[1766421269832,114.33,127.8,127.72,21.85801565]
[1766421270029,21.91,127.79,127.72,21.8]
[1766421270530,7.0462,127.78,127.72,21.8]
[1766421270839,0.05387234,127.76,127.74,0.05193678]
[1766421271239,21.96387234,127.76,127.69,21.8]
[1766421271434,21.91,127.76,127.69,21.8]
[1766421271940,21.91,127.76,127.66,28.8523]
[1766421272239,21.91,127.76,127.67,21.8]
[1766421272427,0.05962064,127.73,127.7,0.05031669]
[1766421280841,30.47862064,127.73,127.7,0.00031669]
[1766421281041,30.47862064,127.73,127.65,92.42]
[1766421281042,23.42962064,127.73,127.65,92.42]
[1766421281244,23.37,127.73,127.65,92.42]
[1766421282243,0.05064053,127.7,127.68,0.0549984]
[1766421283653,0.05064053,127.7,127.68,0.0049984]
[1766421283946,2.407464,127.7,127.64,21.76]
[1766421284545,2.407464,127.7,127.64,28.8138]
[1766421285046,2.407464,127.7,127.66,0.05755528]
[1766421286948,0.05064053,127.7,127.66,0.05755528]
[1766421287451,25.72682347,127.74,127.67,21.76]
[1766421288148,32.77522347,127.74,127.67,28.8122]
[1766421288335,23.37,127.73,127.67,7.0522]
[1766421288541,0.05301044,127.71,127.69,0.05072463]
[1766421289949,2.35682347,127.75,127.69,21.81072463]
[1766421290842,0.05403904,127.73,127.69,21.81072463]
[1766421296351,0.05403904,127.73,127.69,0.05072463]
[1766421296555,2.35682347,127.71,127.65,21.76]
[1766421296742,25.72682347,127.71,127.65,21.76]
[1766421297257,2.35682347,127.69,127.65,21.76]
[1766421297454,2.35682347,127.69,127.62,28.8147]
[1766421297656,2.35682347,127.69,127.64,21.80935332]
[1766421298161,2.35682347,127.71,127.65,21.76]
[1766421298655,0.05241502,127.69,127.67,0.05361731]
[1766421299256,0.00241502,127.69,127.67,0.05361731]
[1766421300548,2.35682347,127.73,127.67,21.81361731]
[1766421301449,2.35682347,127.71,127.67,0.05361731]
[1766421301650,0.05864246,127.7,127.67,0.05361731]
[1766421303059,25.72682347,127.73,127.67,21.81361731]
[1766421304061,0.05506905,127.71,127.67,28.86541731]
[1766421304262,0.05506905,127.71,127.67,0.05361731]
[1766421304456,2.41189252,127.71,127.67,0.05361731]
[1766421304765,2.41189252,127.71,127.62,21.76]
[1766421304766,2.35682347,127.69,127.62,21.76]
[1766421305258,2.35682347,127.7,127.63,21.76]
[1766421305656,2.35682347,127.7,127.65,0.05580253]
[1766421305963,2.35682347,127.7,127.65,21.14580253]
[1766421306763,0.05300809,127.69,127.65,21.14580253]
[1766421308460,0.00300809,127.69,127.65,130.86190253]
[1766421308653,0.00300809,127.69,127.66,21.09]
[1766421309056,0.00300809,127.69,127.68,21.09]
[1766421312367,2.35682347,127.77,127.71,28.14]
[1766421312667,25.44682347,127.79,127.72,21.09]
[1766421313263,25.44682347,127.79,127.74,7.0482]
[1766421313459,0.05639481,127.78,127.75,0.05644632]
[1766421313659,23.09,127.82,127.75,21.14644632]
[1766421313860,25.44682347,127.81,127.73,21.09]
[1766421314163,2.35682347,127.79,127.73,21.09]
[1766421314669,0.05893938,127.77,127.75,0.0577667]
[1766421316656,2.41576285,127.77,127.72,7.049]
[1766421317763,2.41576285,127.77,127.73,0.058149]
[1766421317968,0.05893938,127.77,127.73,0.058149]
[1766421319972,23.09,127.75,127.68,113.53]
[1766421320270,30.1379,127.75,127.68,113.53]
[1766421321071,0.0553111,127.73,127.7,0.04978692]
[1766421321463,3.67877315,127.76,127.7,21.13978692]
[1766421322071,26.76877315,127.78,127.7,28.19018692]
[1766421322371,33.81507315,127.78,127.7,28.1404]
[1766421322574,0.05285029,127.75,127.73,0.04976501]
[1766421323468,0.00285029,127.75,127.73,0.04976501]
[1766421324168,0.00285029,127.75,127.69,28.1406]
[1766421325374,0.00285029,127.75,127.71,0.05914451]
[1766421325771,23.09285029,127.75,127.71,0.05914451]
[1766421327872,23.09285029,127.75,127.67,92.4]
[1766421328069,23.09,127.74,127.67,92.4]
[1766421328468,23.09,127.72,127.64,7.0534]
[1766421328870,23.09,127.71,127.63,21.09]
[1766421329078,0.05155204,127.69,127.67,0.05026526]
[1766421329562,0.05155204,127.69,127.67,0.00026526]
[1766421331577,22.53155204,127.69,127.62,92.42]
[1766421331769,22.53155204,127.69,127.6,22.21]
[1766421331968,29.5311,127.69,127.61,29.2654]
[1766421332266,22.48,127.69,127.61,22.21]
[1766421332681,0.05291426,127.66,127.64,0.05560534]
[1766421334772,0.00291426,127.66,127.64,0.05560534]
[1766421335586,21.68,127.72,127.64,22.26560534]
[1766421335873,21.68,127.72,127.61,109.7453]
[1766421336073,21.68,127.7,127.62,22.9]
[1766421336471,0.05959599,127.67,127.65,0.05723086]
[1766421337074,21.68,127.73,127.65,22.95723086]
[1766421337277,21.68,127.73,127.65,22.9]
[1766421337775,21.68,127.73,127.66,7.0526]
[1766421337977,21.68,127.73,127.68,0.05778042]
[1766421337978,0.05500681,127.71,127.68,0.05778042]
[1766421338181,0.05500681,127.71,127.65,22.9]
[1766421338883,0.05500681,127.71,127.65,29.9532]
[1766421339183,0.05500681,127.71,127.67,0.05352372]
[1766421340780,10.25200566,127.69,127.59,10.0]
[1766421340983,21.68,127.66,127.56,22.9]
[1766421341182,21.68,127.65,127.56,22.9]
[1766421341777,21.68,127.65,127.56,29.9579]
[1766421341977,0.05560839,127.62,127.59,0.05189417]
[1766421342177,202.1332,127.68,127.59,22.95189417]
[1766421342178,114.12,127.68,127.59,22.95189417]
[1766421342372,21.68,127.67,127.59,22.9]
[1766421342569,21.68,127.67,127.56,22.9]
[1766421342787,21.68,127.66,127.56,22.9]
[1766421343279,0.05374934,127.62,127.56,22.9]
[1766421344184,0.05374934,127.62,127.58,0.05524536]
[1766421347184,21.73374934,127.62,127.53,22.9]
[1766421347379,21.68,127.61,127.53,22.9]
[1766421347584,21.68,127.6,127.52,22.9]
[1766421348387,0.05531844,127.57,127.55,0.0571667]
[1766421349478,0.05531844,127.57,127.5,29.9613]
[1766421349679,0.05531844,127.57,127.51,22.9]
[1766421350380,0.05531844,127.57,127.51,29.9608]
[1766421350687,0.05531844,127.57,127.53,0.05957133]
[1766421352283,0.05531844,127.57,127.53,22.95957133]
[1766421354193,21.68,127.61,127.53,0.05957133]
[1766421354382,21.68,127.6,127.51,22.9]
[1766421354589,21.68,127.59,127.51,22.9]
[1766421355078,0.05141382,127.56,127.54,0.00217053]
[1766421355284,0.05141382,127.56,127.48,22.9]
[1766421355285,21.73141382,127.56,127.48,22.9]
[1766421355484,21.68,127.56,127.48,22.9]
[1766421355685,21.68,127.58,127.49,22.9]
[1766421355886,21.68,127.58,127.49,29.9617]
[1766421356180,28.7374,127.58,127.49,22.9]
[1766421356379,0.05918015,127.55,127.52,0.05754024]
[1766421357288,21.68,127.53,127.45,22.9]
[1766421357595,21.68,127.53,127.46,22.9]
[1766421358287,0.05032846,127.51,127.48,0.05248802]
[1766421360588,120.05060566,127.56,127.48,0.05248802]
[1766421360589,21.68,127.56,127.48,22.95248802]
[1766421360794,21.68,127.56,127.48,22.9]
[1766421361287,21.68,127.56,127.47,92.54]
[1766421361593,0.05782395,127.53,127.5,0.05270618]
[1766421362592,0.05782395,127.53,127.5,0.00270618]
[1766421365491,21.75782395,127.53,127.5,0.00270618]
[1766421365896,21.75782395,127.53,127.45,22.9]
[1766421366200,25.39372911,127.49,127.4,10.0]
[1766421366396,25.39372911,127.47,127.4,10.0]
[1766421366697,21.7,127.44,127.36,22.29]
[1766421366996,0.05191617,127.41,127.39,0.05778098]
[1766421367297,25.39372911,127.47,127.39,0.05778098]
[1766421367494,25.39372911,127.47,127.38,22.29]
[1766421368295,0.05335713,127.44,127.41,0.06032793]
[1766421369497,117.93372911,127.5,127.41,22.35032793]
[1766421369802,117.93372911,127.5,127.41,22.29]
[1766421370000,21.7,127.49,127.41,22.29]
[1766421370193,21.7,127.49,127.4,92.56]
[1766421370498,21.7,127.49,127.38,132.2387]
[1766421370499,0.05505778,127.46,127.43,0.05863364]
[1766421371994,21.75505778,127.46,127.38,114.85]
[1766421372193,21.7,127.46,127.38,114.85]
[1766421372703,21.7,127.46,127.4,7.067]
[1766421372903,0.05050844,127.44,127.42,0.05705005]
[1766421373210,0.00308385,127.44,127.42,0.05310264]
[1766421373907,0.00308385,127.44,127.42,22.34310264]
[1766421374296,0.00308385,127.44,127.42,29.40900264]
[1766421374496,0.00308385,127.44,127.43,22.29]
[1766421374698,21.7,127.55,127.46,22.29]
[1766421375005,21.7,127.55,127.46,114.89]
[1766421375209,21.7,127.55,127.47,22.29]
[1766421375701,0.00040595,127.52,127.5,0.05178049]
[1766421375901,21.7,127.57,127.49,29.3518]
[1766421376703,0.05759986,127.54,127.52,0.06041381]
[1766421377304,0.05759986,127.54,127.52,0.00041381]
[1766421377501,28.81709986,127.54,127.46,121.9337]
[1766421377712,28.7595,127.54,127.46,121.9337]
[1766421378101,21.7,127.54,127.46,121.9337]
[1766421378508,0.05460751,127.51,127.49,0.05937039]
[1766421378912,0.05460751,127.51,127.44,7.0647]
[1766421379103,0.05460751,127.51,127.43,132.1936]
[1766421379302,21.7,127.54,127.44,22.29]
[1766421379703,21.7,127.51,127.41,22.29]
[1766421379908,0.05585689,127.47,127.45,0.05692603]
[1766421383016,7.0618,127.5,127.45,0.05692603]
[1766421383416,21.7,127.51,127.45,0.05692603]
[1766421383618,105.97535956,127.52,127.45,0.05692603]
[1766421384023,0.05887178,127.5,127.45,0.05692603]
[1766421384622,0.05887178,127.5,127.45,22.34692603]
[1766421385218,0.05887178,127.5,127.45,29.41112603]
[1766421385423,114.28,127.54,127.45,22.34692603]
[1766421385611,114.28,127.54,127.45,22.29]
[1766421386524,28.7586,127.56,127.48,0.05756666]
[1766421386823,28.7586,127.56,127.47,22.29]
[1766421387028,141.5970386,127.58,127.48,22.29]
[1766421387029,23.65637904,127.58,127.48,22.29]
[1766421387621,0.05046988,127.54,127.52,0.04949239]
[1766421389627,0.05046988,127.54,127.48,22.29]
[1766421389920,0.05046988,127.54,127.44,109.8966]
[1766421389921,0.05046988,127.54,127.47,92.58]
[1766421390222,21.77,127.56,127.47,92.58]
[1766421390634,0.05138801,127.53,127.5,0.06031494]
[1766421394028,0.05138801,127.53,127.5,20.93031494]
[1766421394029,0.00138801,127.53,127.5,20.93031494]
[1766421394331,10.0,127.6,127.52,20.87]
[1766421394532,10.0,127.6,127.53,20.87]
[1766421394930,10.0,127.6,127.54,7.0593]
[1766421395334,0.05389399,127.58,127.56,0.05141189]
[1766421395825,0.00389399,127.58,127.56,0.05141189]
[1766421397633,10.0,127.6,127.56,0.05141189]
[1766421398637,0.05558897,127.59,127.56,0.05141189]
[1766421398935,10.0,127.6,127.56,7.10961189]
[1766421399322,20.24,127.65,127.57,20.65]
[1766421399838,7.0539,127.64,127.57,27.7077]
[1766421400129,0.05818118,127.62,127.59,0.04955977]
[1766421401335,7.0526,127.67,127.6,20.65]
[1766421401847,20.24,127.68,127.6,20.65]
[1766421402134,20.24,127.68,127.61,20.65]
[1766421402342,0.0552789,127.66,127.63,0.05693262]
[1766421403528,27.2901,127.71,127.63,20.70693262]
[1766421403732,20.24,127.71,127.63,20.65]
[1766421404630,7.0507,127.7,127.66,0.05097286]
[1766421404940,20.24,127.71,127.66,0.05097286]
[1766421405135,27.2901,127.71,127.66,0.05097286]
[1766421405340,20.24,127.72,127.66,0.05097286]
[1766421405530,20.24,127.71,127.66,0.05097286]
[1766421405730,20.24,127.7,127.66,0.00097286]
[1766421406736,0.05406766,127.69,127.66,0.00097286]
[1766421407533,112.78,127.73,127.66,0.00097286]
[1766421408431,20.24,127.73,127.66,20.65097286]
[1766421408633,33.62205956,127.76,127.67,20.65]
[1766421408834,33.62205956,127.76,127.7,0.05288768]
[1766421409033,27.2874,127.76,127.7,0.05288768]
[1766421411527,92.5,127.77,127.7,20.70288768]
[1766421411931,27.2865,127.78,127.7,20.70288768]
[1766421412133,7.0469,127.77,127.73,0.04977972]
[1766421412931,20.24,127.75,127.67,27.7018]
[1766421413328,20.24,127.78,127.68,20.65]
[1766421413532,27.2863,127.78,127.7,20.65]
[1766421413933,0.05450757,127.75,127.73,0.05253496]
[1766421414138,0.00450757,127.75,127.73,0.00253496]
[1766421415945,20.24450757,127.75,127.67,20.65]
[1766421416241,20.24,127.75,127.67,27.7021]
[1766421416632,20.24,127.75,127.68,7.0515]
[1766421417032,0.05072404,127.73,127.7,0.05260916]
[1766421417540,20.29072404,127.73,127.7,0.00260916]
[1766421417733,20.29072404,127.73,127.64,20.65]
[1766421417936,20.24,127.73,127.64,20.65]
[1766421418545,20.24,127.73,127.64,27.7036]
[1766421418744,0.05430964,127.7,127.67,0.05646091]
[1766421421037,0.05430964,127.7,127.64,20.65]
[1766421422145,0.05430964,127.7,127.66,0.05514181]
[1766421426150,20.02430964,127.7,127.61,19.88]
[1766421426339,19.97,127.7,127.61,19.88]
[1766421426746,27.0217,127.68,127.59,112.34]
[1766421427047,0.05213641,127.65,127.62,0.05691275]
[1766421428850,0.00213641,127.65,127.62,0.05691275]
[1766421433048,27.02553641,127.65,127.59,92.46]
[1766421433250,19.97213641,127.65,127.58,19.88]
[1766421433555,19.97213641,127.65,127.57,92.46]
[1766421433752,19.97,127.65,127.59,7.0564]
[1766421433954,0.05179453,127.63,127.61,0.05206314]
[1766421439653,0.05179453,127.63,127.58,112.36]
[1766421439654,20.02179453,127.63,127.55,26.9385]
[1766421439855,19.97,127.63,127.55,26.9385]
[1766421440063,19.97,127.63,127.55,119.4185]
[1766421440267,6.33445956,127.65,127.56,19.88]
[1766421440463,26.30445956,127.65,127.56,19.88]
[1766421440962,0.04987877,127.62,127.59,0.05109016]
[1766421441860,0.04987877,127.62,127.59,0.00109016]
[1766421442058,7.10487877,127.62,127.59,0.00109016]
[1766421442258,20.01987877,127.62,127.59,0.00109016]
[1766421443651,27.07487877,127.62,127.59,0.00109016]
[1766421444252,7.0555,127.61,127.59,0.00109016]
[1766421444957,7.0561,127.6,127.53,112.38]
[1766421445860,7.0561,127.6,127.55,0.05835772]
[1766421446071,0.05416163,127.58,127.55,0.05835772]
[1766421450066,0.00416163,127.58,127.55,0.05835772]
[1766421450471,20.67,127.62,127.55,0.05835772]
[1766421451369,0.0584928,127.6,127.55,0.05835772]
[1766421451670,0.0584928,127.6,127.55,7.11705772]
[1766421455167,0.0584928,127.6,127.55,27.18705772]
[1766421455771,0.0584928,127.6,127.56,7.0583]
[1766421455972,0.0584928,127.6,127.56,20.48]
[1766421456163,52.1244,127.64,127.56,20.48]
[1766421456367,28.6044,127.64,127.57,27.5376]
[1766421456779,28.6044,127.64,127.57,20.48]
[1766421456780,7.0544,127.63,127.57,20.48]
[1766421457075,7.0544,127.63,127.59,0.05516344]
[1766421457076,0.04973812,127.61,127.59,0.05516344]
[1766421458572,0.04973812,127.61,127.56,92.52]
[1766421458879,0.04973812,127.61,127.56,113.0]
[1766421459078,0.04973812,127.61,127.56,20.48]
[1766421459572,0.04973812,127.61,127.57,0.05945694]
[1766421461979,7.10533812,127.61,127.57,0.05945694]
[1766421463076,28.65533812,127.61,127.57,0.05945694]
[1766421463274,21.55,127.6,127.54,20.48]
[1766421463478,21.55,127.59,127.52,113.0]
[1766421463983,7.0572,127.58,127.52,120.0603]
[1766421464481,0.05807111,127.56,127.54,0.05914419]
[1766421465586,27.20941693,127.6,127.54,0.05914419]
[1766421465587,3.68941693,127.6,127.54,20.53914419]
[1766421466077,10.74571693,127.6,127.54,20.53914419]
[1766421466279,32.29571693,127.6,127.54,20.53914419]
[1766421466473,0.05635813,127.58,127.54,20.53914419]
[1766421467474,28.6055,127.62,127.55,20.48]
[1766421467686,7.0555,127.62,127.55,20.48]
[1766421468187,25.23941693,127.64,127.56,7.0582]
[1766421468574,0.0549791,127.61,127.59,0.05926413]
[1766421469978,0.0049791,127.61,127.59,0.05926413]
[1766421473094,438.6516,127.72,127.59,0.05926413]
[1766421473095,21.55,127.69,127.59,20.53926413]
[1766421473390,25.23941693,127.68,127.59,20.48]
[1766421474180,0.05609168,127.65,127.62,0.05474563]
[1766421474887,21.60609168,127.65,127.59,113.0]
[1766421475293,21.60609168,127.65,127.59,20.48]
[1766421475488,3.68941693,127.64,127.57,92.52]
[1766421475990,0.0592457,127.62,127.59,0.05970828]
[1766421476779,0.0592457,127.62,127.57,63.05970828]
[1766421476983,21.55,127.65,127.58,20.48]
[1766421477789,21.55,127.65,127.57,13.05970828]
[1766421478091,0.05175253,127.62,127.6,0.05153744]
[1766421479080,0.00175253,127.62,127.6,0.05153744]
[1766421482900,92.5,127.66,127.6,27.58743744]
[1766421483887,0.05286072,127.64,127.6,27.58743744]
[1766421484086,3.68708291,127.69,127.62,20.48]
[1766421484386,25.23708291,127.69,127.62,20.48]
[1766421484785,7.0522,127.67,127.62,20.48]
[1766421484997,0.05092665,127.66,127.63,0.05351536]
[1766421485896,28.66372665,127.66,127.63,0.00351536]
[1766421486598,7.0533,127.65,127.59,20.67]
[1766421486795,7.0533,127.65,127.59,27.7266]
[1766421487387,0.06025527,127.63,127.61,0.05012717]
[1766421488690,0.06025527,127.63,127.61,0.00012717]
[1766421488888,0.06025527,127.63,127.57,27.7272]
[1766421489891,0.06025527,127.63,127.59,0.05416924]
[1766421490992,0.06025527,127.63,127.59,20.72416924]
[1766421491187,3.68708291,127.67,127.59,20.72416924]
[1766421491394,3.68708291,127.67,127.59,20.67]
[1766421491596,21.56,127.68,127.6,20.67]
[1766421492199,0.05109948,127.65,127.63,0.05318983]
[1766421493298,92.5,127.7,127.64,20.67]
[1766421494294,0.05720454,127.68,127.66,0.05888557]
[1766421497703,0.05720454,127.68,127.62,7.0544]
[1766421497704,0.05720454,127.68,127.62,27.7244]
[1766421497997,0.05720454,127.68,127.65,7.0533]
[1766421498407,21.56,127.75,127.65,20.67]
[1766421498608,119.6047,127.79,127.65,20.67]
[1766421498609,21.56,127.78,127.69,0.97]
[1766421498807,21.56,127.78,127.7,0.97]
[1766421499205,21.56,127.78,127.71,0.97]
[1766421499406,0.05028742,127.76,127.73,0.05329789]
[1766421500303,21.56,127.84,127.74,1.05]
[1766421500609,21.56,127.83,127.75,92.48]
[1766421501298,0.05204927,127.8,127.78,0.05605387]
[1766421502307,21.56,127.79,127.71,93.69]
[1766421502506,21.56,127.79,127.68,110.9676]
[1766421502714,21.56,127.79,127.69,93.74]
[1766421503196,0.05298754,127.75,127.73,0.05430148]
[1766421505309,0.05298754,127.75,127.69,93.74]
[1766421505606,0.05298754,127.75,127.69,1.28]
[1766421505810,0.05298754,127.75,127.68,92.46]
[1766421506009,21.56,127.76,127.68,92.46]
[1766421506407,0.05798541,127.73,127.71,0.06002088]
[1766421508314,0.05798541,127.73,127.67,8.6418]
[1766421509417,0.05798541,127.73,127.69,0.05118057]
[1766421510211,21.52798541,127.73,127.69,0.05118057]
[1766421511920,2.35627325,127.72,127.69,0.05118057]
[1766421512612,21.52798541,127.73,127.69,2.41118057]
[1766421512613,0.05798541,127.73,127.69,2.41118057]
[1766421512927,0.05798541,127.73,127.69,0.05118057]